[Event "*** SCC Grand Prix: Titled Tuesday Blitz"]
[Site "Chess.com"]
[Date "2020.10.13"]
[Round "9"]
[White "Denis_Makhnyov"]
[Black "PavelShkapenko"]
[Result "1-0"]
[WhiteElo "2887"]
[BlackElo "2732"]
[TimeControl "180+1"]
[EndTime "11:44:15 PDT"]
[Termination "Denis_Makhnyov won by resignation"]

1. d4 {[%clk 0:02:52.9]} 1... Nf6 {[%clk 0:02:58.1]} 2. c4 {[%clk 0:02:52.9]}
2... e6 {[%clk 0:02:55.7]} 3. g3 {[%clk 0:02:52.6]} 3... Bb4+ {[%clk 0:02:55.8]}
4. Bd2 {[%clk 0:02:51.4]} 4... Qe7 {[%clk 0:02:55.3]} 5. Bg2 {[%clk 0:02:51.2]}
5... Nc6 {[%clk 0:02:55.3]} 6. Nf3 {[%clk 0:02:28.6]} 6... Bxd2+ {[%clk
0:02:45.9]} 7. Nbxd2 {[%clk 0:02:15.5]} 7... d6 {[%clk 0:02:44.2]} 8. O-O {[%clk
0:02:15.2]} 8... a5 {[%clk 0:02:43.2]} 9. e4 {[%clk 0:02:13.1]} 9... e5 {[%clk
0:02:43.3]} 10. d5 {[%clk 0:02:13.5]} 10... Nb8 {[%clk 0:02:43.8]} 11. Ne1
{[%clk 0:02:07]} 11... O-O {[%clk 0:02:44.1]} 12. b3 {[%clk 0:02:06.5]} 12...
Na6 {[%clk 0:02:43.1]} 13. a3 {[%clk 0:02:06.9]} 13... Bg4 {[%clk 0:02:37.7]}
14. f3 {[%clk 0:02:04.5]} 14... Bd7 {[%clk 0:02:38.2]} 15. Nd3 {[%clk
0:02:04.5]} 15... c6 {[%clk 0:02:38.4]} 16. dxc6 {[%clk 0:01:36.6]} 16... bxc6
{[%clk 0:02:38]} 17. Qe2 {[%clk 0:01:36.8]} 17... Nc7 {[%clk 0:02:33.7]} 18. c5
{[%clk 0:01:28]} 18... Ne6 {[%clk 0:02:31.1]} 19. cxd6 {[%clk 0:01:25.6]} 19...
Qxd6 {[%clk 0:02:30.7]} 20. Nc4 {[%clk 0:01:26.1]} 20... Qd4+ {[%clk 0:02:23.6]}
21. Kh1 {[%clk 0:01:25.9]} 21... a4 {[%clk 0:02:24.2]} 22. Ndxe5 {[%clk
0:01:21.8]} 22... axb3 {[%clk 0:02:22.6]} 23. Rad1 {[%clk 0:01:21.2]} 23... Qa7
{[%clk 0:02:22.5]} 24. Qb2 {[%clk 0:01:14.6]} 24... Rab8 {[%clk 0:01:54]} 25. f4
{[%clk 0:01:10.8]} 25... Rfd8 {[%clk 0:01:50.6]} 26. Nd6 {[%clk 0:00:50.4]}
26... Rf8 {[%clk 0:01:30.4]} 27. Nf5 {[%clk 0:00:47.9]} 27... Rbd8 {[%clk
0:01:11.1]} 28. Ne7+ {[%clk 0:00:40.9]} 28... Kh8 {[%clk 0:01:10.4]} 29. N7xc6
{[%clk 0:00:40.8]} 29... Bxc6 {[%clk 0:00:55]} 30. Nxc6 {[%clk 0:00:40.9]} 30...
Qa4 {[%clk 0:00:53.8]} 31. Nxd8 {[%clk 0:00:39.3]} 31... Nxd8 {[%clk 0:00:54.3]}
32. e5 {[%clk 0:00:38.8]} 32... Ng4 {[%clk 0:00:51.1]} 33. Rd4 {[%clk
0:00:38.6]} 33... Qb5 {[%clk 0:00:46.4]} 34. Rb4 {[%clk 0:00:36]} 34... Qc5
{[%clk 0:00:46.3]} 35. Rxb3 {[%clk 0:00:32.1]} 35... h5 {[%clk 0:00:43.2]} 36.
h3 {[%clk 0:00:31.6]} 36... Nh6 {[%clk 0:00:36.6]} 37. Rc1 {[%clk 0:00:31.3]}
37... Qe7 {[%clk 0:00:29.8]} 38. Rb8 {[%clk 0:00:31]} 38... Nf5 {[%clk
0:00:29.7]} 39. Kh2 {[%clk 0:00:31.1]} 39... Kg8 {[%clk 0:00:26.1]} 40. Rcc8
{[%clk 0:00:30.5]} 40... Ne6 {[%clk 0:00:26.1]} 41. Rxf8+ {[%clk 0:00:30.3]}
41... Nxf8 {[%clk 0:00:26.7]} 42. Qb4 {[%clk 0:00:30.9]} 42... h4 {[%clk
0:00:24.6]} 43. g4 {[%clk 0:00:30.7]} 1-0

[Event "*** SCC Grand Prix: Titled Tuesday Blitz"]
[Site "Chess.com"]
[Date "2020.10.13"]
[Round "9"]
[White "IvanSoriano1"]
[Black "Kildepiotr"]
[Result "1/2-1/2"]
[WhiteElo "2514"]
[BlackElo "2653"]
[TimeControl "180+1"]
[EndTime "11:44:18 PDT"]
[Termination "Game drawn by repetition"]

1. e4 {[%clk 0:03:00.9]} 1... g6 {[%clk 0:02:59.5]} 2. d4 {[%clk 0:03:00.2]}
2... Bg7 {[%clk 0:02:59.8]} 3. Nc3 {[%clk 0:03:00.9]} 3... c6 {[%clk 0:02:59.8]}
4. Nf3 {[%clk 0:02:57.8]} 4... d6 {[%clk 0:02:59.7]} 5. h3 {[%clk 0:02:57.7]}
5... Nf6 {[%clk 0:02:59.6]} 6. Bd3 {[%clk 0:02:57]} 6... O-O {[%clk 0:02:59.9]}
7. O-O {[%clk 0:02:57]} 7... Nbd7 {[%clk 0:03:00.4]} 8. e5 {[%clk 0:02:55.9]}
8... dxe5 {[%clk 0:02:58.8]} 9. dxe5 {[%clk 0:02:56.8]} 9... Nd5 {[%clk
0:02:58.8]} 10. Nxd5 {[%clk 0:02:53.4]} 10... cxd5 {[%clk 0:02:59.7]} 11. Re1
{[%clk 0:02:54]} 11... Nc5 {[%clk 0:02:56.6]} 12. Nd4 {[%clk 0:02:49.3]} 12...
e6 {[%clk 0:02:50.9]} 13. Bf4 {[%clk 0:02:39.7]} 13... Bd7 {[%clk 0:02:48.4]}
14. Qd2 {[%clk 0:02:35.8]} 14... Qb6 {[%clk 0:02:44.4]} 15. c3 {[%clk
0:02:31.5]} 15... Nxd3 {[%clk 0:02:34.8]} 16. Qxd3 {[%clk 0:02:32.4]} 16... Qxb2
{[%clk 0:02:34.6]} 17. Reb1 {[%clk 0:02:27.3]} 17... Qa3 {[%clk 0:02:34.3]} 18.
Rxb7 {[%clk 0:02:26.1]} 18... Bc8 {[%clk 0:02:32.8]} 19. Rb3 {[%clk 0:02:21.4]}
19... Qa4 {[%clk 0:02:27.1]} 20. Qd2 {[%clk 0:02:17.5]} 20... Ba6 {[%clk
0:02:24]} 21. Bh6 {[%clk 0:02:15.8]} 21... Rfb8 {[%clk 0:02:14.3]} 22. Rab1
{[%clk 0:02:07]} 22... Rxb3 {[%clk 0:02:13.1]} 23. axb3 {[%clk 0:02:07.5]} 23...
Qa3 {[%clk 0:02:02.7]} 24. Bxg7 {[%clk 0:02:06.4]} 24... Kxg7 {[%clk 0:02:03.2]}
25. Qf4 {[%clk 0:02:02.3]} 25... Qe7 {[%clk 0:01:52.1]} 26. Ra1 {[%clk
0:01:58.7]} 26... Bd3 {[%clk 0:01:51.3]} 27. Nc6 {[%clk 0:01:55.7]} 27... Qc7
{[%clk 0:01:46.4]} 28. Qf6+ {[%clk 0:01:55.2]} 28... Kg8 {[%clk 0:01:41.2]} 29.
Ne7+ {[%clk 0:01:54.5]} 29... Kf8 {[%clk 0:01:41.6]} 30. Qh8+ {[%clk 0:01:53.9]}
30... Kxe7 {[%clk 0:01:41.7]} 31. Qxa8 {[%clk 0:01:54.4]} 31... a6 {[%clk
0:01:40.4]} 32. c4 {[%clk 0:01:49.1]} 32... Qxe5 {[%clk 0:01:38.1]} 33. Qxa6
{[%clk 0:01:42.3]} 33... dxc4 {[%clk 0:01:35.9]} 34. bxc4 {[%clk 0:01:37.7]}
34... Bxc4 {[%clk 0:01:32]} 35. Qb7+ {[%clk 0:01:24.9]} 35... Kf6 {[%clk
0:01:31.2]} 36. Ra3 {[%clk 0:01:19.2]} 36... Bd5 {[%clk 0:01:28.6]} 37. Qb4
{[%clk 0:01:13.3]} 37... Kg7 {[%clk 0:01:25.9]} 38. Qc3 {[%clk 0:01:12.5]} 38...
Kf6 {[%clk 0:01:17.7]} 39. Qxe5+ {[%clk 0:01:10.5]} 39... Kxe5 {[%clk
0:01:18.6]} 40. Ra7 {[%clk 0:01:11]} 40... Kf6 {[%clk 0:01:18]} 41. Kh2 {[%clk
0:01:11.6]} 41... h5 {[%clk 0:01:17.2]} 42. Kg3 {[%clk 0:01:12.2]} 42... e5
{[%clk 0:01:17]} 43. Ra6+ {[%clk 0:01:11.1]} 43... Kf5 {[%clk 0:01:17]} 44. h4
{[%clk 0:01:07.3]} 44... Be6 {[%clk 0:01:16.5]} 45. Ra5 {[%clk 0:01:04.8]} 45...
Kf6 {[%clk 0:01:14.1]} 46. Kf3 {[%clk 0:01:03.8]} 46... Kf5 {[%clk 0:01:13.3]}
47. Ke3 {[%clk 0:01:02.2]} 47... Bd7 {[%clk 0:01:11.8]} 48. Ra7 {[%clk
0:00:56.6]} 48... Be6 {[%clk 0:01:11.4]} 49. Ra5 {[%clk 0:00:55.2]} 49... f6
{[%clk 0:01:11.2]} 50. f3 {[%clk 0:00:52.7]} 50... Bd7 {[%clk 0:01:04.1]} 51.
Ra6 {[%clk 0:00:45.4]} 51... g5 {[%clk 0:00:59.7]} 52. hxg5 {[%clk 0:00:38.6]}
52... fxg5 {[%clk 0:00:59.6]} 53. Rh6 {[%clk 0:00:35.8]} 53... h4 {[%clk
0:00:59.3]} 54. Rh8 {[%clk 0:00:33.5]} 54... Bc6 {[%clk 0:00:53.5]} 55. Rf8+
{[%clk 0:00:33.3]} 55... Ke6 {[%clk 0:00:53.6]} 56. Rg8 {[%clk 0:00:33.2]} 56...
Kf5 {[%clk 0:00:53.4]} 57. Rf8+ {[%clk 0:00:33.6]} 57... Ke6 {[%clk 0:00:53.7]}
58. Rg8 {[%clk 0:00:33.8]} 58... Kf5 {[%clk 0:00:54.1]} 59. Rf8+ {[%clk
0:00:33]} 1/2-1/2

[Event "*** SCC Grand Prix: Titled Tuesday Blitz"]
[Site "Chess.com"]
[Date "2020.10.13"]
[Round "9"]
[White "tteshan"]
[Black "Lion-Al-Messi"]
[Result "0-1"]
[WhiteElo "2378"]
[BlackElo "2543"]
[TimeControl "180+1"]
[EndTime "11:44:21 PDT"]
[Termination "Lion-Al-Messi won on time"]

1. e4 {[%clk 0:03:00.9]} 1... b6 {[%clk 0:02:59.5]} 2. a4 {[%clk 0:02:58.2]}
2... Bb7 {[%clk 0:02:59.7]} 3. Nc3 {[%clk 0:02:55.8]} 3... e6 {[%clk 0:02:59.8]}
4. a5 {[%clk 0:02:55.5]} 4... bxa5 {[%clk 0:02:59.5]} 5. Rxa5 {[%clk 0:02:53.7]}
5... Nc6 {[%clk 0:02:59.7]} 6. Ra1 {[%clk 0:02:52.5]} 6... Nf6 {[%clk
0:03:00.2]} 7. d4 {[%clk 0:02:49.9]} 7... Bb4 {[%clk 0:03:00.3]} 8. Bg5 {[%clk
0:02:47.9]} 8... h6 {[%clk 0:02:59.3]} 9. Bxf6 {[%clk 0:02:39.6]} 9... Qxf6
{[%clk 0:03:00.2]} 10. Nf3 {[%clk 0:02:37.3]} 10... O-O {[%clk 0:03:00]} 11. Be2
{[%clk 0:02:32.2]} 11... Bxc3+ {[%clk 0:03:00.5]} 12. bxc3 {[%clk 0:02:31.8]}
12... Qg6 {[%clk 0:03:01.4]} 13. Qd3 {[%clk 0:02:27]} 13... a5 {[%clk
0:02:52.6]} 14. O-O {[%clk 0:02:22.7]} 14... Ba6 {[%clk 0:02:52]} 15. Qe3 {[%clk
0:02:19.8]} 15... Bxe2 {[%clk 0:02:52]} 16. Qxe2 {[%clk 0:02:20.7]} 16... Rfb8
{[%clk 0:02:49.4]} 17. Ra4 {[%clk 0:02:13.3]} 17... d5 {[%clk 0:02:46.6]} 18.
exd5 {[%clk 0:02:04.6]} 18... exd5 {[%clk 0:02:47.5]} 19. c4 {[%clk 0:01:57.7]}
19... Rb2 {[%clk 0:02:41.2]} 20. cxd5 {[%clk 0:01:45.7]} 20... Rxc2 {[%clk
0:02:29.9]} 21. Qb5 {[%clk 0:01:41]} 21... Rb8 {[%clk 0:02:29.9]} 22. Qa6 {[%clk
0:01:33.7]} 22... Nxd4 {[%clk 0:02:21.2]} 23. Qxg6 {[%clk 0:01:27.3]} 23... Ne2+
{[%clk 0:02:01.4]} 24. Kh1 {[%clk 0:01:21.7]} 24... fxg6 {[%clk 0:02:02.3]} 25.
Rxa5 {[%clk 0:01:15]} 25... Rb4 {[%clk 0:02:01.6]} 26. h3 {[%clk 0:01:12.8]}
26... Rbb2 {[%clk 0:01:57.4]} 27. Ra6 {[%clk 0:00:56.5]} 27... Nf4 {[%clk
0:01:55.9]} 28. Kg1 {[%clk 0:00:45.2]} 28... Nd3 {[%clk 0:01:55.9]} 29. Rxg6
{[%clk 0:00:42.3]} 29... Nxf2 {[%clk 0:01:55]} 30. Rc6 {[%clk 0:00:31.8]} 30...
Re2 {[%clk 0:01:44]} 31. Rxc7 {[%clk 0:00:28.5]} 31... Ne4 {[%clk 0:01:41.4]}
32. Rc8+ {[%clk 0:00:27.9]} 32... Kh7 {[%clk 0:01:40.9]} 33. Nh4 {[%clk
0:00:23.7]} 33... Ng3 {[%clk 0:00:49.4]} 34. Rff8 {[%clk 0:00:19.5]} 34... Re1+
{[%clk 0:00:48.7]} 35. Kh2 {[%clk 0:00:18.8]} 35... Nf1+ {[%clk 0:00:48.4]} 36.
Rxf1 {[%clk 0:00:10.7]} 36... Rxf1 {[%clk 0:00:48.1]} 37. d6 {[%clk 0:00:08.5]}
37... Rd2 {[%clk 0:00:45.5]} 38. Rd8 {[%clk 0:00:07.2]} 38... Rf6 {[%clk
0:00:42.6]} 39. d7 {[%clk 0:00:02.4]} 39... Rf7 {[%clk 0:00:42]} 40. Kg3 {[%clk
0:00:01.6]} 40... Rd3+ {[%clk 0:00:41.1]} 0-1

[Event "*** SCC Grand Prix: Titled Tuesday Blitz"]
[Site "Chess.com"]
[Date "2020.10.13"]
[Round "9"]
[White "JoakimVonAnd"]
[Black "glebus008"]
[Result "1-0"]
[WhiteElo "2495"]
[BlackElo "2324"]
[TimeControl "180+1"]
[EndTime "11:44:24 PDT"]
[Termination "JoakimVonAnd won by checkmate"]

1. d4 {[%clk 0:03:00.9]} 1... d5 {[%clk 0:02:59.3]} 2. c4 {[%clk 0:03:00.9]}
2... e6 {[%clk 0:02:59.7]} 3. Nc3 {[%clk 0:03:00.7]} 3... c6 {[%clk 0:02:59.7]}
4. cxd5 {[%clk 0:02:51.6]} 4... exd5 {[%clk 0:02:59.1]} 5. Nf3 {[%clk
0:02:51.6]} 5... Bf5 {[%clk 0:02:58.8]} 6. Bf4 {[%clk 0:02:47]} 6... Bd6 {[%clk
0:02:58]} 7. Bg3 {[%clk 0:02:46.5]} 7... Nf6 {[%clk 0:02:56.3]} 8. e3 {[%clk
0:02:46.6]} 8... Bxg3 {[%clk 0:02:53.1]} 9. hxg3 {[%clk 0:02:46.2]} 9... Nbd7
{[%clk 0:02:53]} 10. Bd3 {[%clk 0:02:46.2]} 10... Bxd3 {[%clk 0:02:52.2]} 11.
Qxd3 {[%clk 0:02:47.1]} 11... Qe7 {[%clk 0:02:52.3]} 12. Nd2 {[%clk 0:02:34.8]}
12... h6 {[%clk 0:02:43.1]} 13. Rb1 {[%clk 0:02:24.2]} 13... O-O {[%clk
0:02:37.6]} 14. Nf3 {[%clk 0:02:16.6]} 14... Ne4 {[%clk 0:02:33.8]} 15. Qc2
{[%clk 0:02:03.2]} 15... Nd6 {[%clk 0:02:32.7]} 16. g4 {[%clk 0:01:51.2]} 16...
Ne4 {[%clk 0:02:21.1]} 17. Nxe4 {[%clk 0:01:44.8]} 17... dxe4 {[%clk 0:02:17.9]}
18. Nd2 {[%clk 0:01:41.5]} 18... Rae8 {[%clk 0:02:12.5]} 19. Nc4 {[%clk
0:01:28.7]} 19... Qe6 {[%clk 0:01:57.1]} 20. Qe2 {[%clk 0:01:21.4]} 20... b5
{[%clk 0:01:54.3]} 21. Nd2 {[%clk 0:01:17.3]} 21... Qxa2 {[%clk 0:01:51]} 22. g5
{[%clk 0:01:14.9]} 22... hxg5 {[%clk 0:01:37.6]} 23. Qh5 {[%clk 0:01:13.7]}
23... f6 {[%clk 0:01:37.8]} 24. Ke2 {[%clk 0:01:05.2]} 24... Qe6 {[%clk
0:01:28.4]} 25. Ra1 {[%clk 0:00:56.5]} 25... Ra8 {[%clk 0:01:24.5]} 26. Qg6
{[%clk 0:00:30.2]} 26... Qe8 {[%clk 0:00:54.9]} 27. Qh7+ {[%clk 0:00:29.1]}
27... Kf7 {[%clk 0:00:53.4]} 28. Nxe4 {[%clk 0:00:29.5]} 28... Qe7 {[%clk
0:00:44.4]} 29. Qh5+ {[%clk 0:00:23.5]} 29... Kg8 {[%clk 0:00:41.3]} 30. Qg6
{[%clk 0:00:20.2]} 30... Rfe8 {[%clk 0:00:31.1]} 31. Rh7 {[%clk 0:00:16]} 31...
Qf8 {[%clk 0:00:12.8]} 32. Rah1 {[%clk 0:00:14]} 32... Qf7 {[%clk 0:00:09.2]}
33. Rh8# {[%clk 0:00:14]} 1-0

[Event "*** SCC Grand Prix: Titled Tuesday Blitz"]
[Site "Chess.com"]
[Date "2020.10.13"]
[Round "9"]
[White "Tayson_7"]
[Black "penguingm1"]
[Result "1-0"]
[WhiteElo "2636"]
[BlackElo "2836"]
[TimeControl "180+1"]
[EndTime "11:44:25 PDT"]
[Termination "Tayson_7 won by checkmate"]

1. e4 {[%clk 0:03:00.9]} 1... e5 {[%clk 0:02:55.9]} 2. Nf3 {[%clk 0:03:00.6]}
2... Nc6 {[%clk 0:02:54.6]} 3. Bb5 {[%clk 0:03:00.7]} 3... g6 {[%clk 0:02:53.9]}
4. d4 {[%clk 0:02:58.7]} 4... exd4 {[%clk 0:02:54.1]} 5. Bg5 {[%clk 0:02:54.7]}
5... Be7 {[%clk 0:02:53.3]} 6. Bxe7 {[%clk 0:02:50.7]} 6... Qxe7 {[%clk
0:02:54.2]} 7. Bxc6 {[%clk 0:02:47.9]} 7... dxc6 {[%clk 0:02:55.1]} 8. Qxd4
{[%clk 0:02:48.5]} 8... Nf6 {[%clk 0:02:51.8]} 9. Nc3 {[%clk 0:02:48.2]} 9...
Bg4 {[%clk 0:02:51.4]} 10. O-O-O {[%clk 0:02:41.1]} 10... Bxf3 {[%clk 0:02:51]}
11. gxf3 {[%clk 0:02:40.9]} 11... O-O {[%clk 0:02:51.7]} 12. f4 {[%clk
0:02:15.1]} 12... Nh5 {[%clk 0:02:44.3]} 13. f5 {[%clk 0:02:09.1]} 13... Rad8
{[%clk 0:02:15.8]} 14. Qxa7 {[%clk 0:01:55.8]} 14... b6 {[%clk 0:02:15.7]} 15.
Qb7 {[%clk 0:01:53.6]} 15... c5 {[%clk 0:01:31.4]} 16. Kb1 {[%clk 0:01:46.8]}
16... Nf6 {[%clk 0:01:13.3]} 17. a4 {[%clk 0:01:40.9]} 17... Rd4 {[%clk
0:00:57.4]} 18. Rde1 {[%clk 0:00:45.6]} 18... Qe5 {[%clk 0:00:42.2]} 19. f4
{[%clk 0:00:44.5]} 19... Qxf4 {[%clk 0:00:37.2]} 20. e5 {[%clk 0:00:41.9]} 20...
Ng4 {[%clk 0:00:36.2]} 21. Rhf1 {[%clk 0:00:20.7]} 21... Qg5 {[%clk 0:00:11.6]}
22. e6 {[%clk 0:00:19.2]} 22... gxf5 {[%clk 0:00:11.4]} 23. e7 {[%clk
0:00:17.3]} 23... Re8 {[%clk 0:00:11.6]} 24. Qxc7 {[%clk 0:00:17.9]} 24... f4
{[%clk 0:00:08.2]} 25. h3 {[%clk 0:00:17.3]} 25... Ne3 {[%clk 0:00:03.6]} 26.
Rg1 {[%clk 0:00:17.8]} 26... Ng2 {[%clk 0:00:04.2]} 27. Qc6 {[%clk 0:00:18.1]}
27... Rd2 {[%clk 0:00:04]} 28. Qxe8+ {[%clk 0:00:17.8]} 28... Kg7 {[%clk
0:00:04.1]} 29. Qf8+ {[%clk 0:00:17.9]} 29... Kg6 {[%clk 0:00:04.5]} 30. e8=Q
{[%clk 0:00:18.4]} 30... Qf5 {[%clk 0:00:05.4]} 31. Qg8+ {[%clk 0:00:17.2]}
31... Kh6 {[%clk 0:00:06]} 32. Qef8+ {[%clk 0:00:17.4]} 32... Kh5 {[%clk
0:00:06.4]} 33. Qfxf7+ {[%clk 0:00:18.1]} 33... Qxf7 {[%clk 0:00:06.7]} 34.
Qxf7+ {[%clk 0:00:19]} 34... Kh4 {[%clk 0:00:07.5]} 35. Rxg2 {[%clk 0:00:18.7]}
35... Rxg2 {[%clk 0:00:06.6]} 36. Qxf4+ {[%clk 0:00:19.2]} 36... Kh5 {[%clk
0:00:07.1]} 37. Re5+ {[%clk 0:00:19.1]} 37... Kg6 {[%clk 0:00:07.8]} 38. Qe4+
{[%clk 0:00:18.8]} 38... Kh6 {[%clk 0:00:08.2]} 39. Qxg2 {[%clk 0:00:19.7]}
39... b5 {[%clk 0:00:08.7]} 40. Qg5# {[%clk 0:00:19.9]} 1-0

[Event "*** SCC Grand Prix: Titled Tuesday Blitz"]
[Site "Chess.com"]
[Date "2020.10.13"]
[Round "9"]
[White "BursaBBSatranc"]
[Black "Eliwood44"]
[Result "0-1"]
[WhiteElo "2578"]
[BlackElo "2438"]
[TimeControl "180+1"]
[EndTime "11:44:25 PDT"]
[Termination "Eliwood44 won on time"]

1. d4 {[%clk 0:03:00.9]} 1... Nf6 {[%clk 0:02:53.2]} 2. Bf4 {[%clk 0:03:01.3]}
2... d5 {[%clk 0:02:53.1]} 3. e3 {[%clk 0:03:01.9]} 3... e6 {[%clk 0:02:53.7]}
4. Nd2 {[%clk 0:03:01.9]} 4... Bd6 {[%clk 0:02:54.2]} 5. Ngf3 {[%clk 0:03:02.2]}
5... O-O {[%clk 0:02:54.3]} 6. Bd3 {[%clk 0:03:02.1]} 6... c5 {[%clk 0:02:54.2]}
7. dxc5 {[%clk 0:03:02.5]} 7... Bxc5 {[%clk 0:02:53.6]} 8. O-O {[%clk
0:03:00.7]} 8... Nc6 {[%clk 0:02:53.6]} 9. c3 {[%clk 0:03:00.5]} 9... Re8 {[%clk
0:02:52.3]} 10. e4 {[%clk 0:02:59.5]} 10... e5 {[%clk 0:02:48.5]} 11. Bg5 {[%clk
0:02:59]} 11... dxe4 {[%clk 0:02:45.9]} 12. Nxe4 {[%clk 0:02:58.4]} 12... Be7
{[%clk 0:02:45.8]} 13. Qe2 {[%clk 0:02:16.9]} 13... h6 {[%clk 0:02:33.2]} 14.
Bh4 {[%clk 0:02:10.9]} 14... Nxe4 {[%clk 0:02:26.3]} 15. Qxe4 {[%clk 0:02:06.7]}
15... Bxh4 {[%clk 0:02:26.3]} 16. Nxh4 {[%clk 0:01:52.9]} 16... Be6 {[%clk
0:02:22.1]} 17. Rad1 {[%clk 0:01:44.4]} 17... Qg5 {[%clk 0:02:21.5]} 18. Nf3
{[%clk 0:01:32.7]} 18... Qf4 {[%clk 0:02:14.2]} 19. Qh7+ {[%clk 0:01:07]} 19...
Kf8 {[%clk 0:02:13.9]} 20. Be4 {[%clk 0:01:07.2]} 20... Rad8 {[%clk 0:02:00.9]}
21. g3 {[%clk 0:01:05.1]} 21... Qf6 {[%clk 0:01:57.8]} 22. Nh4 {[%clk
0:00:47.2]} 22... Ke7 {[%clk 0:01:46.5]} 23. Bxc6 {[%clk 0:00:42.6]} 23... bxc6
{[%clk 0:01:45.4]} 24. Rxd8 {[%clk 0:00:42.6]} 24... Rxd8 {[%clk 0:01:44.9]} 25.
Qe4 {[%clk 0:00:39.9]} 25... Bd5 {[%clk 0:01:42.8]} 26. Qe3 {[%clk 0:00:39.5]}
26... Kf8 {[%clk 0:01:37.7]} 27. f4 {[%clk 0:00:29]} 27... Kg8 {[%clk
0:01:15.4]} 28. fxe5 {[%clk 0:00:26.1]} 28... Qe6 {[%clk 0:01:15.6]} 29. b3
{[%clk 0:00:23]} 29... c5 {[%clk 0:01:04.9]} 30. Nf5 {[%clk 0:00:20.3]} 30...
Ba8 {[%clk 0:01:00.2]} 31. Kf2 {[%clk 0:00:06.2]} 31... Qxf5+ {[%clk 0:00:59.2]}
32. Kg1 {[%clk 0:00:04.2]} 32... Qe4 {[%clk 0:00:53.2]} 33. Qxe4 {[%clk
0:00:03.3]} 33... Bxe4 {[%clk 0:00:54.1]} 34. Rf4 {[%clk 0:00:02.9]} 34... Bb7
{[%clk 0:00:51.4]} 35. Rc4 {[%clk 0:00:02.6]} 35... Rd5 {[%clk 0:00:50.8]} 36.
Ra4 {[%clk 0:00:02.5]} 36... Rxe5 {[%clk 0:00:48.4]} 37. Rxa7 {[%clk 0:00:02.9]}
37... Bf3 {[%clk 0:00:47.7]} 38. Kf2 {[%clk 0:00:02.3]} 38... Bg4 {[%clk
0:00:47.8]} 39. a4 {[%clk 0:00:02.2]} 39... Re2+ {[%clk 0:00:46.5]} 40. Kf1
{[%clk 0:00:01.9]} 40... Rxh2 {[%clk 0:00:46.2]} 41. a5 {[%clk 0:00:01.7]} 41...
Rb2 {[%clk 0:00:46.1]} 42. Rb7 {[%clk 0:00:01.4]} 42... Be6 {[%clk 0:00:42.4]}
43. b4 {[%clk 0:00:01.4]} 43... cxb4 {[%clk 0:00:41.8]} 44. cxb4 {[%clk
0:00:02.3]} 44... Ra2 {[%clk 0:00:41.1]} 0-1

[Event "*** SCC Grand Prix: Titled Tuesday Blitz"]
[Site "Chess.com"]
[Date "2020.10.13"]
[Round "9"]
[White "zurzan"]
[Black "oogee"]
[Result "1-0"]
[WhiteElo "2000"]
[BlackElo "2183"]
[TimeControl "180+1"]
[EndTime "11:44:25 PDT"]
[Termination "zurzan won by resignation"]

1. f4 {[%clk 0:03:00.9]} 1... g6 {[%clk 0:02:58.5]} 2. Nf3 {[%clk 0:03:01]} 2...
Bg7 {[%clk 0:02:58.8]} 3. g3 {[%clk 0:03:01.9]} 3... c5 {[%clk 0:02:57.9]} 4.
Bg2 {[%clk 0:03:02.8]} 4... Nc6 {[%clk 0:02:58.3]} 5. O-O {[%clk 0:03:03.1]}
5... b5 {[%clk 0:02:58]} 6. d3 {[%clk 0:03:03.3]} 6... Rb8 {[%clk 0:02:58.2]} 7.
c3 {[%clk 0:03:03]} 7... Nh6 {[%clk 0:02:55.5]} 8. e4 {[%clk 0:03:01.8]} 8...
O-O {[%clk 0:02:50.9]} 9. Be3 {[%clk 0:03:01.2]} 9... d6 {[%clk 0:02:50.6]} 10.
h3 {[%clk 0:03:00.7]} 10... f5 {[%clk 0:02:50.8]} 11. Nbd2 {[%clk 0:02:57.4]}
11... b4 {[%clk 0:02:46.4]} 12. Rc1 {[%clk 0:02:56]} 12... Ba6 {[%clk
0:02:44.3]} 13. Qc2 {[%clk 0:02:52.4]} 13... Qa5 {[%clk 0:02:30.7]} 14. Nb3
{[%clk 0:02:45]} 14... Qa4 {[%clk 0:02:30.5]} 15. e5 {[%clk 0:01:56.7]} 15... c4
{[%clk 0:02:16.9]} 16. Nbd4 {[%clk 0:01:48.7]} 16... Qxc2 {[%clk 0:02:14.6]} 17.
Rxc2 {[%clk 0:01:48.3]} 17... Nxd4 {[%clk 0:02:11.7]} 18. Bxd4 {[%clk
0:01:46.7]} 18... cxd3 {[%clk 0:02:12.1]} 19. Rd2 {[%clk 0:01:46.4]} 19... Nf7
{[%clk 0:02:02.2]} 20. e6 {[%clk 0:01:45.9]} 20... Nd8 {[%clk 0:01:58.1]} 21.
Ng5 {[%clk 0:01:45.7]} 21... bxc3 {[%clk 0:01:50.1]} 22. bxc3 {[%clk 0:01:44.6]}
22... Bxd4+ {[%clk 0:01:37.2]} 23. cxd4 {[%clk 0:01:44.3]} 23... h6 {[%clk
0:01:37.7]} 24. Nf7 {[%clk 0:01:42.5]} 24... Nxe6 {[%clk 0:01:25.9]} 25. Nxh6+
{[%clk 0:01:41.2]} 25... Kg7 {[%clk 0:01:23.2]} 26. d5 {[%clk 0:01:41.1]} 26...
Nc5 {[%clk 0:01:21]} 27. Ng4 {[%clk 0:01:33.3]} 27... fxg4 {[%clk 0:01:20.5]}
28. hxg4 {[%clk 0:01:34.2]} 28... Rb4 {[%clk 0:01:15.9]} 29. Re1 {[%clk
0:01:33.4]} 29... Kf7 {[%clk 0:01:12.9]} 30. f5 {[%clk 0:01:26.1]} 30... g5
{[%clk 0:01:07.3]} 31. Bf3 {[%clk 0:01:24.4]} 31... Rfb8 {[%clk 0:01:03.3]} 32.
Kf2 {[%clk 0:01:22.9]} 32... Rb2 {[%clk 0:01:03]} 33. Ke3 {[%clk 0:01:22.3]}
33... Rxd2 {[%clk 0:01:01.7]} 34. Kxd2 {[%clk 0:01:22.6]} 34... Rb2+ {[%clk
0:01:01.8]} 35. Ke3 {[%clk 0:01:22.8]} 35... Rxa2 {[%clk 0:00:59.5]} 36. Rh1
{[%clk 0:01:21.6]} 36... Kf6 {[%clk 0:00:49.9]} 37. Rh6+ {[%clk 0:01:19.2]}
37... Ke5 {[%clk 0:00:45.2]} 38. Rg6 {[%clk 0:01:12.3]} 38... Re2+ {[%clk
0:00:22.2]} 39. Bxe2 {[%clk 0:01:10.3]} 39... dxe2 {[%clk 0:00:22.2]} 40. Kd2
{[%clk 0:01:10.1]} 40... Ke4 {[%clk 0:00:20.8]} 41. Rg7 {[%clk 0:01:06.7]} 41...
Nb3+ {[%clk 0:00:16.7]} 42. Ke1 {[%clk 0:01:05.7]} 42... Nd4 {[%clk 0:00:15.5]}
43. Rxe7+ {[%clk 0:01:04.4]} 43... Kf3 {[%clk 0:00:15.1]} 44. f6 {[%clk
0:00:58.2]} 44... Nc2+ {[%clk 0:00:11.8]} 45. Kd2 {[%clk 0:00:58.3]} 45... e1=Q+
{[%clk 0:00:07.8]} 46. Rxe1 {[%clk 0:00:57.6]} 46... Nxe1 {[%clk 0:00:07.6]} 47.
f7 {[%clk 0:00:56.3]} 47... Ng2 {[%clk 0:00:06.1]} 48. f8=Q+ {[%clk 0:00:55.4]}
48... Kxg3 {[%clk 0:00:06.3]} 49. Qxd6+ {[%clk 0:00:52.2]} 49... Kxg4 {[%clk
0:00:05.4]} 50. Qxa6 {[%clk 0:00:51.1]} 50... Nf4 {[%clk 0:00:05.4]} 51. d6
{[%clk 0:00:50.6]} 51... Ne6 {[%clk 0:00:04.6]} 1-0